bitfinex/quotes_BTCUSD_20251010
["timestamp","ask_amount","ask_price","bid_price","bid_amount"]
[1760110022006,0.49105339,119640.0,119610.0,0.43509059]
[1760110022007,0.09999999,119630.0,119610.0,0.43509059]
[1760110022222,0.17200998,119630.0,119610.0,0.2678805]
[1760110022451,0.17200998,119630.0,119610.0,0.71911074]
[1760110022676,0.17200998,119620.0,119600.0,0.71912501]
[1760110022931,0.09999999,119610.0,119590.0,0.16723687]
[1760110023155,0.12499998,119600.0,119590.0,0.16723487]
[1760110023379,0.12499998,119610.0,119600.0,0.16722408]
[1760110023611,0.01562405,119610.0,119600.0,0.16722408]
[1760110023831,0.140624,119620.0,119610.0,0.16721009]
[1760110024049,0.01562402,119620.0,119610.0,0.72550123]
[1760110024269,0.11562401,119630.0,119610.0,0.17114009]
[1760110024487,0.11562401,119630.0,119610.0,0.16721009]
[1760110024488,0.14077568,119630.0,119610.0,0.16721009]
[1760110024704,0.18905568,119630.0,119610.0,0.16621009]
[1760110024919,0.0157757,119630.0,119620.0,0.72302726]
[1760110025138,0.10015167,119630.0,119620.0,0.98496726]
[1760110025362,0.11577569,119630.0,119620.0,0.25031818]
[1760110025634,0.11577569,119630.0,119620.0,0.42667612]
[1760110025879,0.0157757,119630.0,119620.0,0.71909726]
[1760110026125,0.38463166,119630.0,119620.0,0.16719612]
[1760110026375,0.14077568,119630.0,119620.0,0.71909726]
[1760110026621,0.14077568,119630.0,119610.0,0.16720637]
[1760110026863,0.37553398,119630.0,119600.0,0.17558528]
[1760110027117,0.43275998,119620.0,119610.0,0.16721009]
[1760110027380,0.448384,119620.0,119600.0,0.72748642]
[1760110027625,0.140624,119620.0,119610.0,0.71911123]
[1760110027872,0.188904,119620.0,119610.0,0.16721009]
[1760110028361,0.09999999,119610.0,119600.0,0.167224]
[1760110028608,0.11562401,119610.0,119600.0,0.167224]
[1760110028852,0.11562401,119610.0,119600.0,0.71912514]
[1760110029097,0.02499999,119620.0,119610.0,0.16721009]
[1760110029098,0.12499998,119620.0,119610.0,0.16721009]
[1760110029434,0.09999999,119610.0,119600.0,0.71912522]
[1760110029698,0.12599998,119620.0,119610.0,0.16721009]
[1760110029928,0.01660849,119620.0,119610.0,0.72157123]
[1760110030163,0.10099999,119620.0,119610.0,0.16721009]
[1760110030404,0.11660667,119620.0,119610.0,0.16721009]
[1760110030648,0.18888724,119620.0,119600.0,0.16722263]
[1760110030891,0.12599998,119610.0,119600.0,0.16722065]
[1760110031125,0.14160724,119610.0,119600.0,0.71912522]
[1760110031364,0.01660726,119610.0,119600.0,0.80863728]
[1760110031613,0.30019893,119630.0,119620.0,0.16719612]
[1760110031852,0.40212886,119630.0,119620.0,0.71809726]
[1760110032098,0.40212886,119630.0,119620.0,0.16619612]
[1760110032355,0.04268887,119630.0,119620.0,0.73472053]
[1760110032579,0.11768887,119630.0,119620.0,0.80614932]
[1760110032821,0.00208162,119630.0,119620.0,0.80860932]
[1760110033083,0.00208162,119630.0,119620.0,0.25277818]
[1760110033319,0.00208162,119630.0,119620.0,0.80467932]
[1760110033806,0.00208162,119630.0,119620.0,0.80367932]
[1760110034046,0.00208162,119630.0,119620.0,1.06311932]
[1760110034771,0.00208162,119630.0,119620.0,0.51121818]
[1760110035019,0.00308162,119630.0,119620.0,1.06311932]
[1760110035278,0.00308162,119630.0,119620.0,1.40311932]
[1760110035796,0.00308162,119630.0,119620.0,1.14367932]
[1760110036063,0.00308162,119630.0,119620.0,1.40700932]
[1760110036572,0.00308162,119630.0,119620.0,1.14760932]
[1760110036789,0.00308162,119630.0,119620.0,0.72302726]
[1760110037036,0.00308162,119630.0,119620.0,0.98242726]
[1760110037253,0.00308162,119630.0,119620.0,0.98488726]
[1760110037473,0.00308162,119630.0,119620.0,0.98242726]
[1760110037690,0.19453067,119650.0,119640.0,0.16716817]
[1760110037691,0.03173067,119650.0,119640.0,0.16716817]
[1760110037907,0.03223607,119650.0,119640.0,1.06794137]
[1760110038773,0.02499999,119680.0,119670.0,0.16712626]
[1760110038986,0.02499999,119680.0,119670.0,1.06150946]
[1760110038987,0.00015156,119680.0,119670.0,1.06150946]
[1760110039199,0.00015156,119680.0,119670.0,1.06689946]
[1760110039414,0.00015156,119680.0,119670.0,1.40689946]
[1760110039637,0.00015156,119680.0,119670.0,0.85499832]
[1760110039852,1e-08,119680.0,119670.0,1.9588006]
[1760110040501,0.00010001,119680.0,119670.0,1.9588006]
[1760110040747,1e-08,119680.0,119670.0,1.14653946]
[1760110040964,1e-08,119680.0,119670.0,1.96598156]
[1760110041182,1e-08,119680.0,119670.0,2.028867]
[1760110041863,0.0002,119730.0,119720.0,0.16705646]
[1760110042147,0.00035153,119730.0,119720.0,1.40139966]
[1760110042397,0.02499999,119760.0,119750.0,0.16701461]
[1760110042398,0.02306664,119760.0,119750.0,0.16701461]
[1760110042617,0.04804039,119770.0,119760.0,0.16700066]
[1760110042837,0.09999999,119760.0,119750.0,0.42633461]
[1760110043046,0.0230404,119760.0,119750.0,0.51584667]
[1760110043273,0.14854548,119770.0,119760.0,0.16700066]
[1760110043488,0.00804,119770.0,119760.0,0.25258272]
[1760110043734,0.0005049,119770.0,119760.0,0.25012272]
[1760110043969,0.10050489,119770.0,119760.0,0.80448386]
[1760110044185,0.10803999,119770.0,119760.0,1.06376386]
[1760110044405,0.0005049,119770.0,119760.0,1.06376386]
[1760110044894,0.0005049,119770.0,119760.0,1.40376386]
[1760110044898,0.0003,119780.0,119760.0,1.46780457]
[1760110045134,0.00045141,119780.0,119770.0,1.14346992]
[1760110045364,0.00045141,119780.0,119770.0,0.59156878]
[1760110045600,0.00045141,119780.0,119770.0,0.59056878]
[1760110045830,0.00045141,119780.0,119770.0,1.40170992]
[1760110046064,0.00045141,119780.0,119770.0,0.59056878]
[1760110046299,0.00045141,119780.0,119770.0,1.14246992]
[1760110046562,0.00045141,119780.0,119770.0,1.40166992]
[1760110046800,0.00055141,119780.0,119770.0,0.55190114]
[1760110047036,0.00055141,119780.0,119770.0,0.71888786]
[1760110047291,0.00055141,119780.0,119770.0,0.55190114]
[1760110047520,0.00055141,119780.0,119770.0,0.81106114]
[1760110047752,0.09999999,119770.0,119760.0,0.55190114]
[1760110047986,0.12555139,119780.0,119760.0,1.06118386]
[1760110048219,0.00055141,119780.0,119770.0,0.72134786]
[1760110048445,0.60764,119810.0,119780.0,0.16597278]
[1760110048712,0.70621331,119810.0,119780.0,0.71787392]
[1760110048941,0.9631855,119810.0,119780.0,0.16597278]
[1760110049188,0.06159624,119800.0,119770.0,0.17533605]
[1760110049421,0.06159624,119800.0,119770.0,0.98635625]
[1760110049648,0.15163624,119800.0,119770.0,0.98635625]
[1760110049889,0.0022,119810.0,119790.0,0.71885998]
[1760110050124,0.05934928,119830.0,119800.0,0.1669449]
[1760110050367,0.04828,119810.0,119790.0,0.1871176]
[1760110050598,0.04828,119810.0,119800.0,0.1669449]
[1760110050831,0.22144206,119820.0,119800.0,0.1669449]
[1760110050832,0.48056206,119820.0,119800.0,0.1669449]
[1760110051062,0.49600973,119820.0,119800.0,0.55190114]
[1760110051295,0.49600973,119820.0,119800.0,0.16694431]
[1760110051536,0.01544767,119820.0,119810.0,0.16693097]
[1760110051768,0.04828,119820.0,119810.0,0.16693097]
[1760110052005,0.30525476,119830.0,119820.0,0.16591704]
[1760110052006,0.00015138,119830.0,119820.0,0.16591704]
[1760110052239,0.00015138,119830.0,119820.0,0.71781818]
[1760110052623,0.00015138,119830.0,119800.0,0.17529155]
[1760110052714,0.04843138,119830.0,119800.0,0.72719269]
[1760110052951,0.06387421,119830.0,119810.0,0.16693064]
[1760110053203,0.78600944,119820.0,119780.0,0.17531986]
[1760110053452,0.39761,119810.0,119790.0,0.17530419]
[1760110053689,0.30667,119810.0,119790.0,0.68437556]
[1760110053940,0.04763,119810.0,119780.0,0.25009408]
[1760110054168,0.04763,119810.0,119790.0,0.16695884]
[1760110054169,0.11043,119800.0,119790.0,0.16695884]
[1760110054380,0.04763,119800.0,119790.0,0.16695884]
[1760110054582,0.0001,119810.0,119800.0,0.1669449]
[1760110054796,0.0001,119810.0,119800.0,0.88357046]
[1760110055037,0.0001,119810.0,119800.0,0.98685252]
[1760110056095,0.0011,119810.0,119800.0,1.32685252]
[1760110056771,0.0011,119810.0,119800.0,0.64247696]
[1760110056980,0.0011,119810.0,119800.0,1.32685252]
[1760110057637,0.0011,119810.0,119800.0,1.58585252]
[1760110057852,0.0001,119810.0,119800.0,1.58585252]
[1760110058293,0.0011,119810.0,119800.0,1.58581252]
[1760110058717,0.0011,119810.0,119800.0,1.32685252]
[1760110058929,0.0001,119810.0,119800.0,1.58581252]
[1760110059594,0.00015138,119830.0,119820.0,0.16691704]
[1760110059802,0.00015138,119830.0,119820.0,1.55349466]
[1760110060018,0.01065432,119830.0,119820.0,1.60590466]
[1760110060725,0.01065432,119830.0,119820.0,1.70590465]
[1760110060940,1e-08,119830.0,119820.0,2.4152802]
[1760110061154,0.0002,119850.0,119840.0,0.26688917]
[1760110061368,0.0002,119850.0,119840.0,1.03438679]
[1760110061605,0.0002,119850.0,119840.0,1.40646152]
[1760110061792,0.00124924,119850.0,119840.0,1.40646152]
[1760110062012,0.00124924,119850.0,119840.0,0.72208596]
[1760110062158,0.00124924,119850.0,119840.0,1.40646152]
[1760110062367,0.23049427,119900.0,119880.0,0.16682109]
[1760110062567,0.14403898,119900.0,119880.0,0.19063109]
[1760110062769,0.00050471,119900.0,119890.0,0.16681958]
[1760110063594,0.00050471,119900.0,119890.0,0.28803164]
[1760110063854,0.00050471,119900.0,119890.0,0.88928514]
[1760110064174,0.00050471,119900.0,119890.0,0.46374958]
[1760110064999,0.06114624,119920.0,119910.0,0.16679176]
[1760110065217,0.06129758,119920.0,119900.0,0.17528907]
[1760110065432,0.00035134,119920.0,119910.0,0.16679176]
[1760110065855,0.00035134,119920.0,119910.0,0.97237938]
[1760110066251,0.00135134,119920.0,119910.0,1.23117938]
[1760110066885,0.00135134,119920.0,119910.0,0.28800382]
[1760110067275,0.00135134,119920.0,119910.0,1.23113938]
[1760110067468,0.00135134,119920.0,119910.0,1.25494938]
[1760110067822,0.00035134,119920.0,119910.0,1.25494938]
[1760110068083,0.00135134,119920.0,119910.0,1.25494938]
[1760110068287,0.00502124,119920.0,119910.0,1.25494938]
[1760110068492,0.00402124,119920.0,119910.0,1.25494938]
[1760110068702,0.00402124,119920.0,119910.0,0.97237938]
[1760110068853,0.00502124,119920.0,119910.0,0.54672382]
[1760110069063,0.00502124,119920.0,119910.0,0.31181382]
[1760110069244,0.00502124,119920.0,119910.0,0.28800382]
[1760110069452,0.00502124,119920.0,119900.0,0.17528907]
[1760110069679,0.00135134,119920.0,119910.0,0.16679176]
[1760110069898,0.00135134,119920.0,119910.0,0.20488176]
[1760110070129,0.00135134,119920.0,119910.0,0.20109278]
[1760110070340,0.00135134,119920.0,119910.0,0.9685904]
[1760110070536,0.00135134,119920.0,119910.0,0.9924004]
[1760110071133,0.00135134,119920.0,119910.0,0.54289484]
[1760110071360,0.00035134,119920.0,119910.0,0.54289484]
[1760110071582,0.00035134,119920.0,119910.0,0.28421484]
[1760110071833,0.00135134,119920.0,119910.0,0.20488176]
[1760110072059,0.00135134,119920.0,119900.0,0.49625703]
[1760110072284,0.04667134,119920.0,119910.0,0.16679176]
[1760110072722,0.00035134,119920.0,119910.0,0.16679176]
[1760110072954,0.10836134,119920.0,119910.0,5.16679176]
[1760110073225,0.03817605,119930.0,119910.0,5.20488176]
[1760110073429,0.13108605,119930.0,119910.0,5.16679019]
[1760110073652,0.13108605,119930.0,119910.0,5.0]
[1760110073653,0.20092,119920.0,119910.0,5.0]
[1760110073875,2.02752077,119920.0,119910.0,5.0]
[1760110074103,1.43496736,119920.0,119910.0,5.0]
[1760110074371,1.60174521,119920.0,119910.0,5.0]
[1760110075015,2.28612077,119920.0,119910.0,5.0]
[1760110075237,1.18003726,119920.0,119910.0,5.0]
[1760110075446,1.34572726,119920.0,119910.0,5.05112]
[1760110075735,0.0046699,119920.0,119910.0,5.93423732]
[1760110075957,0.0046699,119920.0,119910.0,5.24986176]
[1760110076163,0.0509899,119920.0,119910.0,5.19874176]
[1760110076581,0.0046699,119920.0,119910.0,5.24986176]
[1760110077211,0.0046699,119920.0,119910.0,4.74986176]
[1760110077416,0.0509899,119920.0,119910.0,4.53195]
[1760110077626,0.0509899,119920.0,119910.0,4.69874176]
[1760110078047,0.0046699,119920.0,119910.0,4.69874176]
[1760110079062,0.63088775,119920.0,119910.0,4.5]
[1760110079274,0.4641099,119920.0,119910.0,4.5]
[1760110079500,0.3711999,119920.0,119910.0,4.5]
[1760110079740,0.4641099,119920.0,119910.0,4.5]
[1760110080369,0.3711599,119920.0,119910.0,4.5]
[1760110080524,0.4640699,119920.0,119910.0,4.5]
[1760110080749,0.0509899,119920.0,119910.0,4.5]
[1760110080965,0.0046699,119920.0,119910.0,4.5]
[1760110081277,0.0509899,119920.0,119910.0,4.66679176]
[1760110081485,0.3094699,119920.0,119910.0,4.66679176]
[1760110081695,0.4640699,119920.0,119910.0,4.5]
[1760110081902,0.4640699,119920.0,119910.0,4.66679176]
[1760110082107,0.3711599,119920.0,119910.0,4.66679176]
[1760110082307,0.2631499,119920.0,119910.0,4.66679176]
[1760110082516,0.3711599,119920.0,119910.0,4.66679176]
[1760110082731,0.37108336,119920.0,119910.0,4.66679176]
[1760110082942,0.00459336,119920.0,119910.0,4.66679176]
[1760110083147,0.26281092,119920.0,119910.0,4.71791176]
[1760110083418,0.26281092,119920.0,119910.0,4.55112]
[1760110083624,0.12161058,119920.0,119910.0,4.66679176]
[1760110083836,0.00323742,119920.0,119910.0,4.66679176]
[1760110084051,0.05021742,119920.0,119910.0,4.66679176]
[1760110084262,0.11363002,119920.0,119910.0,4.5]
[1760110084478,0.22576066,119920.0,119910.0,4.5]
[1760110084717,1.77849974,119920.0,119910.0,4.5]
[1760110085330,1.77817169,119920.0,119910.0,4.5]
[1760110085742,1.09379613,119920.0,119910.0,4.5]
[1760110085958,1.77817169,119920.0,119910.0,4.5]
[1760110086564,2.47089169,119920.0,119910.0,4.5]
[1760110087430,1.78651613,119920.0,119910.0,4.49456899]
[1760110087634,2.47089169,119920.0,119910.0,4.49456899]
[1760110088072,2.90562768,119920.0,119910.0,4.49456899]
[1760110088298,1.52853212,119920.0,119910.0,4.49456899]
[1760110088513,2.81843968,119920.0,119910.0,4.49456899]
[1760110088929,2.12571968,119920.0,119910.0,4.49456899]
[1760110089127,2.81743968,119920.0,119910.0,4.49456899]
[1760110089327,3.24491648,119920.0,119910.0,4.49456899]
[1760110089533,3.24691648,119920.0,119910.0,4.49456899]
[1760110089723,8.70882403,119920.0,119910.0,3.98376389]
[1760110089944,8.7158887,119920.0,119910.0,3.78338941]
[1760110090151,8.72348762,119920.0,119910.0,3.72020408]
[1760110090287,8.72448762,119920.0,119910.0,3.38605047]
[1760110090496,8.72448762,119920.0,119910.0,3.17921128]
[1760110090497,8.82448761,119920.0,119910.0,3.17921128]
[1760110090691,8.82448761,119920.0,119910.0,2.94183565]
[1760110090911,8.82448761,119920.0,119910.0,2.6986344]
[1760110090912,8.88718017,119920.0,119910.0,2.6986344]
[1760110091133,3.92438729,119920.0,119910.0,2.05896863]
[1760110091334,8.92438729,119920.0,119910.0,1.99634707]
[1760110091536,8.92338729,119920.0,119910.0,1.59482983]
[1760110091733,3.92338729,119920.0,119910.0,1.22792025]
[1760110091955,8.92338729,119920.0,119910.0,1.15802773]
[1760110092129,2.88510729,119920.0,119910.0,0.1517048]
[1760110092350,1.53186131,119860.0,119850.0,0.06619503]
[1760110092556,1.53186131,119860.0,119850.0,0.06669974]
[1760110092557,3.37750723,119860.0,119850.0,0.06669974]
[1760110092760,4.93171723,119860.0,119850.0,0.06669974]
[1760110092967,6.77300023,119860.0,119850.0,0.06979627]
[1760110093178,2.81725722,119860.0,119850.0,0.00360124]
[1760110093452,8.85761722,119860.0,119850.0,0.00360124]
[1760110093657,8.85761722,119860.0,119810.0,0.06619503]
[1760110093658,0.94,119820.0,119810.0,0.06619503]
[1760110093856,2.48797217,119820.0,119810.0,0.06634637]
[1760110094087,2.64308217,119820.0,119810.0,0.06634637]
[1760110094276,1.95870661,119820.0,119810.0,0.00888505]
[1760110094495,2.13938957,119820.0,119810.0,0.00225041]
[1760110094704,2.40152762,119820.0,119810.0,0.00225041]
[1760110094941,3.38590318,119820.0,119810.0,0.00225041]
[1760110095154,3.75432318,119820.0,119810.0,0.00225041]
[1760110095353,0.89342957,119820.0,119810.0,0.85355694]
[1760110095558,0.85919137,119820.0,119810.0,0.08224721]
[1760110095964,1.66699523,119820.0,119810.0,0.00225041]
[1760110096177,1.40863523,119820.0,119810.0,0.00225041]
[1760110096422,1.24171819,119820.0,119810.0,0.00225041]
[1760110096644,2.10151523,119820.0,119810.0,0.00225041]
[1760110097091,5.67174679,119820.0,119810.0,0.00225041]
[1760110097312,4.55136658,119820.0,119810.0,0.00225041]
[1760110097531,4.37136979,119820.0,119810.0,0.00225041]
[1760110097742,5.32500979,119820.0,119810.0,0.00225041]
[1760110097969,4.79129752,119820.0,119810.0,0.00225041]
[1760110098206,3.49731408,119820.0,119810.0,0.00225041]
[1760110098481,7.58279406,119820.0,119810.0,0.00225041]
[1760110098702,8.62343406,119820.0,119810.0,0.00225041]
[1760110099107,6.8984185,119820.0,119810.0,0.00225041]
[1760110099324,7.8454715,119820.0,119810.0,0.00225041]
[1760110099558,6.6217575,119820.0,119810.0,0.00225041]
[1760110099849,2.08045852,119820.0,119810.0,0.00225041]
[1760110100123,2.61617952,119820.0,119810.0,0.00225041]
[1760110100370,1.69018223,119820.0,119810.0,0.00225041]
[1760110100609,1.07063523,119820.0,119810.0,0.00225041]
[1760110100856,1.33835819,119820.0,119810.0,0.00225041]
[1760110101086,1.76363523,119820.0,119810.0,0.00225041]
[1760110101578,2.89206723,119820.0,119810.0,0.00225041]
[1760110101827,2.56045923,119820.0,119810.0,0.00225041]
[1760110102082,1.56745923,119820.0,119810.0,0.00225041]
[1760110102344,2.10367523,119820.0,119810.0,0.00225041]
[1760110102574,1.41063523,119820.0,119810.0,0.00225041]
[1760110102805,2.10367523,119820.0,119810.0,0.00225041]
[1760110103264,1.41063523,119820.0,119810.0,0.00225041]
[1760110103494,2.10367523,119820.0,119810.0,0.00225041]
[1760110103771,1.41063523,119820.0,119810.0,0.00225041]
[1760110104050,2.78805079,119820.0,119810.0,0.00225041]
[1760110104286,1.41063523,119820.0,119810.0,0.00225041]
[1760110104773,1.24371819,119820.0,119810.0,0.00225041]
[1760110105021,2.09536351,119820.0,119810.0,0.00225041]
[1760110105884,2.09532351,119820.0,119810.0,0.00225041]
[1760110106323,3.07979907,119820.0,119810.0,0.00225041]
[1760110106540,2.69542351,119820.0,119810.0,0.00225041]
[1760110106767,3.37979907,119820.0,119810.0,0.00225041]
[1760110107003,2.69542351,119820.0,119810.0,0.00225041]
[1760110107882,2.39542351,119820.0,119810.0,0.00225041]
[1760110108107,1.53550647,119820.0,119810.0,0.00225041]
[1760110108319,2.39546351,119820.0,119810.0,0.00225041]
[1760110108541,1.19550647,119820.0,119810.0,0.00225041]
[1760110109232,2.05542351,119820.0,119810.0,0.00225041]
[1760110109878,2.39542351,119820.0,119810.0,0.00225041]
[1760110110345,2.30850351,119820.0,119810.0,0.00225041]
[1760110110563,2.39542351,119820.0,119810.0,0.00225041]
[1760110110780,1.92850647,119820.0,119810.0,0.00225041]
[1760110111004,1.58850647,119820.0,119810.0,0.00225041]
[1760110111224,1.75542351,119820.0,119810.0,0.00225041]
[1760110111442,1.58850647,119820.0,119810.0,0.00225041]
[1760110111684,1.75542351,119820.0,119810.0,0.00225041]
[1760110112118,1.79132046,119800.0,119790.0,0.0004]
[1760110112346,0.51535502,119770.0,119730.0,0.8860164]
[1760110112564,0.40979624,119760.0,119730.0,0.89487342]
[1760110112831,0.40979624,119760.0,119740.0,0.16702299]
[1760110112832,0.04698,119750.0,119740.0,0.16702299]
[1760110113050,0.04698,119740.0,119730.0,0.0005049]
[1760110113272,0.30522,119740.0,119730.0,0.16754741]
[1760110113493,0.37081,119740.0,119730.0,0.24754421]
[1760110113698,0.37081,119740.0,119730.0,0.80197477]
[1760110113915,0.37081,119740.0,119730.0,0.25174586]
[1760110114188,0.46737,119740.0,119730.0,0.00470655]
[1760110114616,0.55049206,119740.0,119730.0,0.00470655]
[1760110115045,0.55049206,119740.0,119730.0,0.00570655]
[1760110115261,0.29225206,119740.0,119730.0,0.17274906]
[1760110115495,0.29225206,119740.0,119730.0,0.72297797]
[1760110115709,0.30518,119740.0,119730.0,0.80297477]
[1760110115918,0.2583,119740.0,119730.0,0.85833477]
[1760110116127,0.0001,119740.0,119730.0,0.30810586]
[1760110116338,0.0001,119740.0,119730.0,0.94045683]
[1760110116566,0.20742,119740.0,119730.0,0.97505683]
[1760110116803,0.20742,119740.0,119730.0,0.94145683]
[1760110117012,0.41683,119740.0,119730.0,0.08570335]
[1760110117225,0.43479458,119740.0,119730.0,0.08570335]
[1760110117873,0.22547458,119740.0,119730.0,0.08570335]
[1760110118138,0.30859664,119740.0,119730.0,0.08570335]
[1760110118350,0.30859664,119740.0,119730.0,0.00570655]
[1760110118351,0.33096798,119740.0,119730.0,0.00570655]
[1760110118569,0.33096798,119740.0,119730.0,0.17274906]
[1760110118782,0.33096798,119740.0,119730.0,0.00570655]
[1760110119217,0.58912798,119740.0,119730.0,0.00570655]
[1760110119714,0.75615654,119740.0,119730.0,0.00570655]
[1760110119921,0.61903628,119740.0,119730.0,0.00570655]
[1760110120132,0.6122757,119740.0,119730.0,0.00570655]
[1760110120556,0.61915137,119740.0,119730.0,0.00570655]
[1760110120788,0.63476696,119740.0,119730.0,0.00570655]
[1760110121003,0.61228092,119740.0,119730.0,0.00570655]
[1760110121214,0.63476812,119740.0,119730.0,0.00570655]
[1760110121431,0.37670795,119740.0,119730.0,0.00570655]
[1760110121674,0.61925118,119740.0,119730.0,0.00570655]
[1760110122147,0.63486803,119740.0,119730.0,0.17274906]
[1760110122357,0.60495973,119740.0,119730.0,0.25274586]
[1760110122567,0.60495973,119740.0,119730.0,0.08570335]
[1760110123230,0.95238179,119740.0,119730.0,0.00570655]
[1760110123482,1.11941035,119740.0,119730.0,0.00570655]
[1760110123699,1.7953778,119740.0,119730.0,0.00570655]
[1760110123911,1.24514889,119740.0,119730.0,0.00570655]
[1760110124375,1.41217745,119740.0,119730.0,0.00570655]
[1760110124863,1.96240636,119740.0,119730.0,0.00570655]
[1760110125079,1.33206889,119740.0,119730.0,0.00570655]
[1760110125309,0.98698889,119740.0,119730.0,0.00570655]
[1760110125758,1.35450947,119740.0,119730.0,0.00570655]
[1760110126079,0.25023407,119740.0,119730.0,0.17274906]
[1760110126249,0.25023407,119740.0,119730.0,0.25274586]
[1760110126250,0.42519201,119740.0,119730.0,0.25274586]
[1760110126476,0.40957516,119740.0,119730.0,0.25274586]
[1760110126700,0.52174623,119740.0,119730.0,0.00570655]
[1760110126923,1.32212562,119740.0,119730.0,0.00570655]
[1760110127138,1.62231944,119740.0,119730.0,0.00570655]
[1760110127398,0.00835282,119720.0,119690.0,0.0004]
[1760110127628,0.00835282,119720.0,119690.0,0.00055138]
[1760110127629,0.11285,119700.0,119690.0,0.00055138]
[1760110127854,0.32383423,119700.0,119690.0,0.00055138]
[1760110128073,2.04765737,119700.0,119690.0,0.0026536]
[1760110128595,1.33034409,119700.0,119690.0,0.0026536]
[1760110128829,1.24338409,119700.0,119690.0,0.0026536]
[1760110129062,1.60399093,119700.0,119690.0,0.16975193]
[1760110129297,0.62612483,119700.0,119690.0,0.20347782]
[1760110129552,0.6081389,119700.0,119690.0,0.20347782]
[1760110129761,0.01560684,119700.0,119690.0,0.79591673]
[1760110130008,0.04726,119710.0,119700.0,0.16708437]
[1760110130217,0.3053,119710.0,119700.0,0.16708437]
[1760110130425,0.3053,119710.0,119700.0,0.24708117]
[1760110130635,0.36759,119710.0,119700.0,0.24708117]
[1760110130848,0.3053,119710.0,119700.0,0.24708117]
[1760110131066,0.46554,119710.0,119700.0,0.24708117]
[1760110131511,0.46554,119710.0,119700.0,0.16708437]
[1760110131727,0.36755,119710.0,119700.0,0.16708437]
[1760110131937,0.54862206,119710.0,119690.0,0.16764956]
[1760110132145,0.14673,119700.0,119690.0,0.16764956]
[1760110132387,0.14673,119700.0,119690.0,0.00055138]
[1760110132620,0.63214206,119700.0,119690.0,0.00055138]
[1760110132870,1.66029376,119700.0,119690.0,1.38e-06]
[1760110133355,1.66039376,119700.0,119690.0,1.38e-06]
[1760110133599,1.94242474,119700.0,119690.0,1.38e-06]
[1760110133824,1.96039184,119700.0,119690.0,1.38e-06]
[1760110134065,1.66816293,119700.0,119690.0,1.38e-06]
[1760110134307,1.24307856,119700.0,119690.0,1.38e-06]
[1760110134538,2.14125646,119700.0,119690.0,1.38e-06]
[1760110135031,2.69148537,119700.0,119690.0,1.38e-06]
[1760110135291,2.99148537,119700.0,119690.0,1.38e-06]
[1760110135534,3.89407058,119700.0,119690.0,1.38e-06]
[1760110135770,6.00979889,119700.0,119690.0,1.38e-06]
[1760110136008,3.34641998,119700.0,119690.0,1.38e-06]
[1760110136249,1.74820769,119700.0,119690.0,0.0021036]
[1760110136489,1.28112332,119700.0,119690.0,0.0021036]
[1760110136733,2.9914766,119700.0,119690.0,0.0021036]
[1760110136987,1.72575759,119700.0,119690.0,0.0021036]
[1760110137515,2.9700265,119700.0,119690.0,0.0021036]
[1760110137767,1.95367322,119700.0,119690.0,0.0021036]
[1760110137996,1.95371322,119700.0,119690.0,0.0021036]
[1760110138217,2.6690265,119700.0,119690.0,0.0021036]
[1760110138428,2.6914766,119700.0,119690.0,0.0021036]
[1760110138692,2.5913626,119700.0,119690.0,0.0021036]
[1760110138919,3.2843626,119700.0,119690.0,0.0021036]
[1760110139363,2.5913626,119700.0,119690.0,0.0021036]
[1760110139580,2.73417369,119700.0,119690.0,0.0021036]
[1760110140022,3.2844026,119700.0,119690.0,0.0021036]
[1760110140260,2.01313769,119700.0,119690.0,0.0021036]
[1760110140495,3.4174226,119700.0,119690.0,0.0021036]
[1760110140735,3.99762613,119700.0,119690.0,0.0021036]
[1760110140966,3.47239721,119700.0,119690.0,0.0021036]
[1760110141208,1.94832685,119700.0,119690.0,0.0021036]
[1760110141484,1.79308769,119700.0,119690.0,0.0021036]
[1760110141728,0.16709833,119690.0,119680.0,0.0004]
[1760110141966,1.54524116,119690.0,119680.0,0.00055141]
[1760110142257,1.70548116,119690.0,119680.0,0.00055141]
[1760110142526,1.70548116,119690.0,119680.0,0.0010771]
[1760110143014,5.70258268,119690.0,119680.0,0.0010771]
[1760110143210,1.26777356,119690.0,119680.0,0.0010771]
[1760110143431,6.57719566,119690.0,119680.0,0.0010771]
[1760110143652,6.09416166,119690.0,119680.0,0.0010771]
[1760110143876,6.88286811,119690.0,119680.0,0.0010771]
[1760110144132,6.85289349,119690.0,119680.0,0.0010771]
[1760110144409,0.6,119640.0,119610.0,0.61642394]
[1760110144672,0.17230234,119620.0,119610.0,0.06670043]
[1760110144912,0.2058641,119620.0,119610.0,0.06670043]
[1760110145238,0.38320616,119620.0,119610.0,0.0005054]
[1760110145446,0.32340382,119620.0,119610.0,0.0005054]
[1760110145674,1.64082885,119620.0,119610.0,0.0005054]
[1760110145884,1.44341592,119620.0,119610.0,0.0005054]
[1760110146103,2.33364483,119620.0,119610.0,0.0005054]
[1760110146307,0.6,119600.0,119580.0,0.0004]
[1760110146518,0.16571124,119590.0,119580.0,0.00055153]
[1760110146752,0.61683734,119590.0,119580.0,0.16780357]
[1760110146959,0.31367904,119590.0,119580.0,0.31414685]
[1760110147380,0.08558178,119590.0,119580.0,0.24751685]
[1760110147594,0.31360452,119590.0,119580.0,0.24751685]
[1760110147810,0.52780336,119590.0,119580.0,0.20214685]
[1760110148025,0.43358336,119590.0,119580.0,0.20214685]
[1760110148237,0.39032167,119590.0,119580.0,0.20214685]
[1760110148446,0.10274441,119590.0,119580.0,0.20214685]
[1760110148656,0.02226976,119600.0,119590.0,0.16723806]
[1760110148868,0.15233182,119600.0,119590.0,0.21646981]
[1760110149095,0.25986806,119600.0,119590.0,0.21646981]
[1760110149315,0.15233182,119600.0,119590.0,0.04923175]
[1760110149522,0.16564806,119600.0,119590.0,0.04923175]
[1760110149729,0.02226976,119600.0,119590.0,0.21646981]
[1760110149937,0.405886,119600.0,119590.0,0.21646981]
[1760110150151,0.09170589,119620.0,119600.0,0.16722408]
[1760110150374,0.4434783,119620.0,119610.0,0.16721009]
[1760110150614,0.34102206,119620.0,119610.0,0.21783222]
[1760110150839,0.0001,119620.0,119610.0,0.21783222]
[1760110151062,0.2579,119620.0,119610.0,0.83469113]
[1760110151281,0.2579,119620.0,119610.0,0.21783222]
[1760110151532,0.30484,119620.0,119610.0,0.26689448]
[1760110151749,0.2579,119620.0,119610.0,0.33352448]
[1760110152180,0.0001,119620.0,119610.0,0.33352448]
[1760110152403,0.0083605,119610.0,119580.0,0.00055153]
[1760110152631,0.66272891,119590.0,119580.0,0.00055153]
[1760110152890,0.19562206,119590.0,119580.0,0.00055153]
[1760110153122,0.48875356,119590.0,119580.0,0.00055153]
[1760110153557,1.20622053,119590.0,119580.0,0.00055153]
[1760110153991,1.54622053,119590.0,119580.0,0.00055153]
[1760110154214,0.99599162,119590.0,119580.0,0.00055153]
[1760110154447,2.23930053,119590.0,119580.0,0.00055153]
[1760110154912,2.15230053,119590.0,119580.0,0.00055153]
[1760110155142,2.23938053,119590.0,119580.0,0.00055153]